bitfinex/quotes_ETHUSD_20240922
["timestamp","ask_amount","ask_price","bid_price","bid_amount"]
[1727021406418,1.21807438,2569.2,2568.9,7.78532]
[1727021406618,1.21807438,2569.2,2569.0,3.89256]
[1727021411535,1.21807438,2569.1,2568.9,3.89263]
[1727021411693,1.21807438,2569.1,2568.9,7.78526]
[1727021412034,1.21807438,2569.2,2569.1,3.89241]
[1727021412242,1.21807438,2569.3,2569.2,3.89226]
[1727021412526,1.21795286,2569.3,2569.2,3.89226]
[1727021413091,1.21795286,2569.3,2569.1,7.78474]
[1727021413287,1.21795286,2569.3,2569.2,3.89226]
[1727021414189,1.21795286,2569.4,2569.3,3.89211]
[1727021414793,1.66826089,2569.8,2569.3,3.89211]
[1727021414794,1.21795286,2569.8,2569.7,3.8915]
[1727021415028,4.44732397,2570.0,2569.7,3.8915]
[1727021415029,1.21795286,2570.0,2569.9,3.8912]
[1727021415235,1.21795286,2570.2,2570.0,3.89105]
[1727021415416,1.21795286,2570.4,2570.3,3.89059]
[1727021415634,4.04129917,2570.6,2570.3,3.89059]
[1727021415635,1.21795286,2570.5,2570.3,3.89059]
[1727021415934,1.21795286,2570.5,2570.4,3.89044]
[1727021416103,3.63515286,2570.6,2570.4,3.89044]
[1727021416945,3.63335587,2570.6,2570.2,3.8906]
[1727021417105,3.3316757,2570.6,2570.3,3.89058]
[1727021417627,3.3316757,2570.6,2570.4,3.89041]
[1727021418336,2.4172,2570.6,2570.4,3.89041]
[1727021420499,4.08546089,2570.6,2570.2,3.8906]
[1727021420829,4.08546089,2570.6,2570.0,3.89096]
[1727021420830,7.97561089,2570.6,2570.0,3.89096]
[1727021421233,7.97561089,2570.6,2570.1,3.89078]
[1727021421532,7.61551968,2570.6,2570.1,3.89078]
[1727021421731,7.61551968,2570.6,2570.2,3.89064]
[1727021421732,2.4172,2570.6,2570.2,3.89064]
[1727021421933,2.4172,2570.6,2570.3,3.89049]
[1727021422098,2.4172,2570.6,2570.4,3.89043]
[1727021422301,2.3469,2570.9,2570.4,3.89035]
[1727021422508,2.3469,2570.9,2570.4,7.78071]
[1727021422851,3.25899468,2570.9,2570.4,7.78071]
[1727021423217,3.25899468,2570.9,2570.4,3.89035]
[1727021424929,7.14870468,2570.9,2570.4,3.89035]
[1727021425316,7.14870468,2570.9,2570.3,3.89057]
[1727021425317,5.55810089,2570.8,2570.3,3.89057]
[1727021426636,5.55810089,2570.8,2570.3,7.78108]
[1727021426840,5.55810089,2570.8,2570.3,3.89051]
[1727021427030,0.04564882,2570.7,2570.3,3.89051]
[1727021427360,6.23705,2570.6,2570.1,3.89077]
[1727021427519,6.28269882,2570.6,2570.1,3.89077]
[1727021428758,6.28269882,2570.6,2570.1,7.78158]
[1727021429546,6.28269882,2570.6,2570.1,3.89077]
[1727021430553,6.28269882,2570.6,2570.1,7.78158]
[1727021431962,6.31601065,2570.6,2570.1,7.78158]
[1727021432676,2.42586065,2570.6,2570.2,3.89071]
[1727021434779,2.42586065,2570.6,2570.3,3.89055]
[1727021437812,3.8906,2570.3,2569.6,1.39163]
[1727021437948,3.8906,2570.3,2568.7,1.22303715]
[1727021437949,3.89375,2568.3,2567.9,0.17353547]
[1727021438140,6.33931,2568.5,2567.9,0.17353547]
[1727021438394,0.07877134,2568.2,2567.9,0.17353547]
[1727021438597,0.07877134,2568.2,2567.9,3.89409]
[1727021438907,1.21080634,2568.9,2568.0,0.39316015]
[1727021438908,0.80671091,2568.8,2568.0,0.39316015]
[1727021439057,0.07321803,2568.1,2568.0,0.39316015]
[1727021439382,1.66826089,2568.7,2568.0,0.39316015]
[1727021440045,0.06973782,2568.6,2568.0,0.39316015]
[1727021440389,0.06973782,2568.6,2568.0,4.28723015]
[1727021440570,0.06973782,2568.6,2568.1,0.65931302]
[1727021440769,6.33853,2569.0,2568.2,3.89366]
[1727021440770,2.4459,2569.0,2568.2,3.89366]
[1727021440984,0.06754463,2568.5,2568.2,3.89366]
[1727021441295,2.4459,2569.0,2568.2,7.78733]
[1727021441448,0.06754463,2568.4,2568.3,3.89361]
[1727021441649,2.4459,2569.0,2568.3,4.7382683]
[1727021441845,0.06754463,2568.9,2568.3,4.7382683]
[1727021442864,0.06754463,2568.9,2568.3,0.8446583]
[1727021443683,3.96027463,2568.9,2568.3,0.8446583]
[1727021443981,0.06754463,2568.9,2568.3,0.8446583]
[1727021444298,0.06754463,2568.9,2568.4,0.47383183]
[1727021447496,3.96029463,2568.9,2568.4,0.47383183]
[1727021448537,3.96029463,2568.9,2567.9,5.3059]
[1727021448538,18.23,2568.0,2567.0,0.0375115]
[1727021448800,2.433,2566.6,2566.3,0.0375115]
[1727021449005,3.89569,2567.0,2566.3,0.0375115]
[1727021449212,0.06767943,2566.5,2566.3,0.0375115]
[1727021449373,3.896,2566.8,2566.3,0.0375115]
[1727021449562,0.06767943,2566.4,2566.3,0.0375115]
[1727021449762,3.896,2566.8,2566.3,0.0375115]
[1727021449963,0.06718503,2566.4,2566.3,0.0375115]
[1727021450462,3.896,2566.8,2566.3,0.0375115]
[1727021450668,0.06718503,2566.7,2566.3,0.0375115]
[1727021450895,3.896,2566.8,2566.3,0.0375115]
[1727021451093,0.06718503,2566.6,2566.3,0.0375115]
[1727021451293,3.896,2566.8,2566.3,0.0375115]
[1727021451641,0.0669039,2566.5,2566.3,0.0375115]
[1727021451766,3.89613,2566.7,2566.3,0.0375115]
[1727021451965,0.0669039,2566.4,2566.3,0.0375115]
[1727021452193,3.89613,2566.7,2566.3,0.0375115]
[1727021452399,0.0669039,2566.4,2566.3,0.0375115]
[1727021452595,3.896,2566.8,2566.3,0.0375115]
[1727021453068,0.05835011,2566.7,2566.3,0.82062765]
[1727021453391,3.896,2566.8,2566.3,0.82062765]
[1727021453903,0.05768687,2566.7,2566.3,0.82062765]
[1727021454102,3.896,2566.8,2566.3,0.82062765]
[1727021454309,0.05768687,2566.6,2566.3,0.82062765]
[1727021454512,3.896,2566.8,2566.4,0.47174377]
[1727021454665,0.05768687,2566.5,2566.4,0.47174377]
[1727021454867,3.896,2566.8,2566.4,0.47174377]
[1727021455206,0.05768687,2566.7,2566.4,0.47174377]
[1727021455436,0.05768687,2566.7,2566.4,2.74684377]
[1727021455702,0.05769062,2566.6,2566.5,0.74640414]
[1727021455903,3.89566,2567.0,2566.5,0.74640414]
[1727021456114,0.05767185,2566.6,2566.5,0.74640414]
[1727021456413,3.89566,2567.0,2566.5,0.74640414]
[1727021456576,0.05767185,2566.6,2566.5,0.74640414]
[1727021456901,0.05770935,2566.6,2566.5,0.74640414]
[1727021457100,3.89566,2567.0,2566.5,0.74640414]
[1727021457300,0.05770935,2566.6,2566.5,0.74640414]
[1727021457505,3.89566,2567.0,2566.5,0.74640414]
[1727021457678,0.05770935,2566.6,2566.5,0.74640414]
[1727021457885,3.89566,2567.0,2566.5,0.74640414]
[1727021458082,0.05770935,2566.6,2566.5,0.74640414]
[1727021458376,3.89551,2567.1,2566.5,4.64275414]
[1727021458561,0.05770562,2566.6,2566.5,4.64275414]
[1727021458765,3.89551,2567.1,2566.5,4.64275414]
[1727021459010,0.05770562,2566.6,2566.5,4.64275414]
[1727021459259,3.89551,2567.1,2566.5,4.64275414]
[1727021459745,0.05770562,2567.0,2566.5,4.64275414]
[1727021460740,3.95329562,2567.0,2566.5,8.53901414]
[1727021460944,3.95329562,2567.0,2566.5,4.64266414]
[1727021462110,0.05770562,2567.0,2566.6,0.73895079]
[1727021462454,3.0,2567.8,2566.6,0.73895079]
[1727021462455,3.89515,2567.3,2566.7,3.89604]
[1727021462744,7.7902,2567.4,2566.8,3.89588]
[1727021462970,0.05399111,2567.2,2566.8,3.89588]
[1727021463154,0.05399111,2567.2,2566.9,3.8957]
[1727021463327,0.05213149,2567.1,2567.0,6.21239]
[1727021463509,6.25344,2567.6,2567.0,6.21239]
[1727021463713,0.05218032,2567.1,2567.0,6.21239]
[1727021463941,3.89458,2567.7,2567.2,3.89528]
[1727021464139,3.89443,2567.8,2567.2,3.89528]
[1727021464312,3.89454,2567.7,2567.2,3.89528]
[1727021464711,7.78891,2567.8,2567.2,3.89528]
[1727021465036,3.89454,2567.7,2567.2,3.89528]
[1727021465829,3.89443,2567.8,2567.2,3.8952]
[1727021466241,3.89443,2567.8,2567.3,3.89504]
[1727021466447,3.89443,2567.8,2567.2,3.8952]
[1727021466611,4.909179,2567.8,2567.0,7.30840691]
[1727021466818,4.63234632,2567.8,2567.0,7.30840691]
[1727021467239,4.63234632,2567.8,2567.0,6.21229]
[1727021467240,3.89486,2567.5,2567.0,6.21229]
[1727021467765,8.52682632,2567.8,2567.0,6.21229]
[1727021467915,3.89472,2567.6,2567.0,6.21229]
[1727021468115,3.89472,2567.6,2567.0,10.10779]
[1727021468439,3.89472,2567.6,2567.1,3.89541]
[1727021468749,3.89472,2567.6,2567.0,10.10779]
[1727021468945,3.89472,2567.6,2567.0,8.03714605]
[1727021469553,3.89472,2567.6,2567.0,11.93265605]
[1727021469965,3.89472,2567.6,2567.1,3.89535]
[1727021470253,4.909209,2567.8,2567.0,8.03714605]
[1727021470254,3.89448,2567.8,2567.2,3.8952]
[1727021470457,3.89448,2567.8,2567.2,4.69888561]
[1727021470667,3.89448,2567.8,2567.2,8.59407561]
[1727021471964,0.05255964,2567.7,2567.2,8.59407561]
[1727021472666,0.05255964,2567.7,2567.2,8.59406561]
[1727021472822,0.05255964,2567.7,2567.3,3.89508]
[1727021473221,3.89448,2567.8,2567.3,3.89508]
[1727021473426,0.05255964,2567.6,2567.3,3.89508]
[1727021473747,0.05255964,2567.5,2567.3,3.89508]
[1727021474061,3.89448,2567.8,2567.3,3.89508]
[1727021474562,0.05255964,2567.7,2567.3,3.89508]
[1727021474729,3.89448,2567.8,2567.3,3.89508]
[1727021474928,0.05255964,2567.6,2567.3,3.89508]
[1727021475131,3.89448,2567.8,2567.3,3.89508]
[1727021475441,0.05255964,2567.5,2567.3,3.89508]
[1727021475642,3.89448,2567.8,2567.3,3.89508]
[1727021475886,0.05255964,2567.4,2567.3,3.89508]
[1727021476380,8.803693,2567.8,2567.3,3.89508]
[1727021476663,0.05255964,2567.4,2567.3,3.89508]
[1727021476831,3.89453,2567.7,2567.3,3.89508]
[1727021477031,0.05255964,2567.4,2567.3,3.89508]
[1727021477230,1.014733,2567.8,2567.3,3.89508]
[1727021477465,0.05255964,2567.4,2567.3,3.89508]
[1727021478066,4.909193,2567.8,2567.3,3.89508]
[1727021478275,0.05255964,2567.4,2567.3,3.89508]
[1727021478443,3.89446,2567.8,2567.3,3.89508]
[1727021479072,0.05255964,2567.7,2567.3,3.89508]
[1727021479436,6.25294,2567.9,2567.3,3.89506]
[1727021479660,0.05255964,2567.6,2567.3,3.89506]
[1727021479833,3.89439,2567.8,2567.3,3.89506]
[1727021480035,0.05255964,2567.5,2567.3,3.89506]
[1727021480234,4.909123,2567.8,2567.3,3.89506]
[1727021480463,0.05255964,2567.4,2567.3,3.89506]
[1727021480656,4.909123,2567.8,2567.3,3.89506]
[1727021480846,0.05260844,2567.4,2567.3,3.89506]
[1727021481051,4.909123,2567.8,2567.3,3.89506]
[1727021481367,1.1162063,2567.7,2567.3,3.89506]
[1727021481580,1.16881474,2567.7,2567.3,3.89506]
[1727021482490,1.16881474,2567.7,2567.3,7.79009]
[1727021482635,0.05260844,2567.7,2567.3,7.79009]
[1727021482834,0.05260844,2567.7,2567.3,3.89504]
[1727021483060,3.8944,2567.8,2567.3,3.89504]
[1727021483251,0.05260844,2567.6,2567.3,3.89504]
[1727021483454,3.8944,2567.8,2567.3,3.89504]
[1727021483679,0.05260844,2567.5,2567.3,3.89504]
[1727021483979,0.05260844,2567.4,2567.3,3.89504]
[1727021484143,4.909134,2567.8,2567.3,3.89504]
[1727021484339,0.05260844,2567.4,2567.3,3.89504]
[1727021484676,4.909134,2567.8,2567.3,3.89504]
[1727021484847,0.05261217,2567.4,2567.0,2.3168]
[1727021485052,0.05261217,2567.4,2566.9,3.89565]
[1727021485053,2.2983,2567.4,2566.9,3.89565]
[1727021485254,0.05261217,2567.3,2566.9,3.89565]
[1727021485875,0.05261217,2567.3,2567.0,3.89559]
[1727021488670,0.05261217,2567.3,2566.8,7.79167]
[1727021488895,0.05261217,2567.3,2566.8,7.79158]
[1727021489347,0.05261217,2567.3,2566.9,3.89573]
[1727021490068,4.96184239,2567.3,2566.7,9.26369]
[1727021490431,8.85712239,2567.3,2566.7,6.89597]
[1727021490720,3.89532,2567.2,2566.7,6.89597]
[1727021491005,0.0524695,2567.1,2566.7,7.79195]
[1727021491848,0.0524695,2567.1,2566.7,3.89597]
[1727021492428,3.89601,2566.8,2566.3,0.0375115]
[1727021492574,4.27777403,2566.8,2566.4,3.8965]
[1727021492774,0.0522442,2566.7,2566.4,3.8965]
[1727021493003,6.19413,2566.9,2566.4,3.8965]
[1727021493004,2.2983,2566.9,2566.4,3.8965]
[1727021493203,0.0522442,2566.8,2566.6,3.89606]
[1727021493519,2.2983,2567.1,2566.6,3.89606]
[1727021493711,0.0522442,2566.7,2566.6,3.89606]
[1727021494101,3.10416148,2567.1,2566.6,3.89606]
[1727021494320,0.05222166,2566.7,2566.6,3.89606]
[1727021494531,3.10416148,2567.1,2566.7,3.89603]
[1727021495315,3.10416148,2567.1,2566.4,2.3677]
[1727021495517,3.10416148,2567.1,2566.8,3.89587]
[1727021496189,3.10416148,2567.1,2566.8,3.89582]
[1727021497225,0.80586148,2567.0,2566.8,3.89582]
[1727021497896,0.80586148,2567.0,2566.8,7.79163]
[1727021498132,3.10416148,2567.1,2566.8,7.7916]
[1727021498417,0.80586148,2567.0,2566.8,3.89579]
[1727021499295,3.10416148,2567.1,2566.9,3.89574]
[1727021499698,0.80586148,2567.1,2566.9,3.89574]
[1727021501828,0.04946291,2567.0,2566.9,3.89574]
[1727021503393,0.04946291,2567.0,2566.8,3.89589]
[1727021503593,0.85532439,2567.0,2566.9,3.89574]
[1727021503789,0.04946291,2567.0,2566.9,3.89574]
[1727021504300,0.04946291,2567.0,2566.9,4.674903]
[1727021504550,1.61172297,2567.4,2566.9,4.674903]
[1727021504551,0.80586148,2567.4,2566.9,3.8570699]
[1727021504890,0.80586148,2567.6,2567.5,3.89483]
[1727021505236,0.80586148,2567.7,2567.5,3.89483]
[1727021505538,0.80586148,2567.7,2567.6,3.89468]
[1727021505742,0.80586148,2567.8,2567.7,3.89453]
[1727021508243,0.80586148,2567.9,2567.7,3.89442]
[1727021509257,0.80586148,2568.0,2567.9,3.89423]
[1727021509575,0.80586148,2568.2,2567.9,3.89423]
[1727021510492,1.20879223,2568.3,2568.2,3.89377]
[1727021510493,0.80586148,2568.3,2568.2,3.89377]
[1727021510783,0.80586148,2568.6,2568.4,3.89347]
[1727021511568,0.80586148,2568.7,2568.4,3.89347]
[1727021512160,4.69890148,2568.7,2568.2,3.89369]
[1727021512458,0.80586148,2568.7,2568.3,3.89361]
[1727021513185,0.80586148,2568.7,2568.2,7.78738]
[1727021513480,0.80586148,2568.7,2568.3,3.89359]
[1727021513678,12.1604992,2568.8,2568.3,3.89359]
[1727021516453,11.35463772,2568.8,2568.3,3.89359]
[1727021516878,0.04335885,2568.7,2568.3,3.89359]
[1727021517293,6.26408,2568.8,2568.3,3.89359]
[1727021517466,0.04335885,2568.6,2568.3,3.89359]
[1727021517667,6.26408,2568.8,2568.3,3.89359]
[1727021517869,0.04335885,2568.7,2568.2,3.89369]
[1727021519089,3.93648885,2568.7,2568.2,3.89368]
[1727021522068,3.93648885,2568.7,2568.2,7.78737]
[1727021522395,3.93648885,2568.7,2568.2,3.89368]
[1727021523524,3.93648885,2568.7,2568.2,7.78738]
[1727021523815,3.93648885,2568.7,2568.3,3.89362]
[1727021525019,3.93648885,2568.7,2568.2,7.78736]
[1727021526331,3.93648885,2568.7,2568.2,3.89368]
[1727021526503,0.04335885,2568.7,2568.3,3.89361]
[1727021527030,0.04259712,2568.6,2568.3,3.89361]
[1727021527331,6.26407,2568.8,2568.3,3.89361]
[1727021527482,0.04259712,2568.5,2568.3,3.89361]
[1727021527795,0.04259712,2568.4,2568.3,3.89361]
[1727021528000,6.26407,2568.8,2568.3,3.89361]
[1727021528219,0.04259712,2568.7,2568.4,3.89347]
[1727021528630,2.3411,2568.4,2568.0,3.89407]
[1727021528804,2.3411,2568.4,2567.6,6.37857]
[1727021528985,3.93621712,2568.3,2567.9,3.89421]
[1727021531019,3.93621712,2568.3,2567.8,3.89438]
[1727021531231,0.04259712,2568.3,2567.9,3.8942]
[1727021531429,0.04259712,2568.3,2568.1,3.89392]
[1727021532196,0.04259712,2568.3,2568.2,3.89377]
[1727021532825,2.3411,2568.6,2568.2,3.89377]
[1727021533186,0.04259712,2568.5,2568.2,3.89377]
[1727021538547,2.3411,2568.2,2567.7,0.07786193]
[1727021538835,2.3411,2568.2,2566.6,3.8961]
[1727021538836,2.3411,2567.2,2566.6,3.8961]
[1727021539049,7.55581842,2567.1,2566.3,2.5215115]
[1727021539199,8.36319738,2567.1,2566.4,0.64182915]
[1727021540031,3.61761732,2566.8,2566.4,0.64182915]
[1727021540243,0.04273609,2566.7,2566.4,0.64182915]
[1727021540400,3.61761732,2566.8,2566.4,0.64182915]
[1727021540711,0.04237184,2566.7,2566.4,0.64182915]
[1727021540907,0.04237184,2566.7,2566.3,2.5215115]
[1727021541258,0.04237184,2566.6,2566.3,2.5215115]
[1727021541537,3.61761732,2566.8,2566.3,2.5215115]
[1727021541721,0.04237184,2566.5,2566.3,2.5215115]
[1727021541927,3.61761732,2566.8,2566.3,2.5215115]
[1727021542137,3.61761732,2566.8,2566.4,0.25215115]
[1727021542323,3.61761732,2566.8,2566.3,2.5215115]
[1727021542324,3.61761732,2566.5,2566.3,0.0375115]
[1727021544898,6.08171732,2566.5,2566.3,0.0375115]
[1727021545173,6.3606,2566.4,2566.3,0.0375115]
[1727021545319,10.78559628,2566.4,2566.3,0.0375115]
[1727021545519,9.97821732,2566.4,2566.3,0.0375115]
[1727021545839,11.56752279,2566.4,2566.3,0.0375115]
[1727021546816,11.60921883,2566.4,2566.3,0.0375115]
[1727021548519,3.89772,2565.6,2565.3,7.2876914]
[1727021548725,3.89772,2565.6,2564.4,19.91]
[1727021548726,3.89772,2565.6,2564.5,9.7234914]
[1727021548727,9.97943732,2565.6,2564.5,9.7234914]
[1727021548920,9.97943732,2565.6,2564.5,13.6228714]
[1727021548921,10.02073123,2565.6,2564.5,13.6228714]
[1727021549268,11.80231635,2565.6,2564.5,9.7234914]
[1727021550359,11.80231635,2565.6,2564.5,13.6228514]
[1727021550681,11.80231635,2565.6,2564.5,9.7234914]
[1727021551977,11.80231635,2565.6,2564.5,13.6228214]
[1727021552192,11.80231635,2565.6,2564.5,13.6228614]
[1727021552883,2.50539391,2565.6,2565.0,2.4358]
[1727021553047,2.50539391,2565.6,2565.0,2.3733115]
[1727021553263,2.50539391,2565.6,2565.0,6.2719215]
[1727021553442,0.04129391,2565.6,2565.2,3.89823]
[1727021553645,2.4641,2566.1,2565.5,3.89787]
[1727021553881,0.03630951,2566.0,2565.5,3.89787]
[1727021554181,0.03630951,2566.0,2565.5,4.677467]
[1727021556272,0.03630951,2566.0,2565.5,7.113267]
[1727021556492,0.03630951,2566.0,2565.5,3.215397]
[1727021556662,3.93341951,2566.0,2565.5,2.4358]
[1727021558255,3.93341951,2566.0,2565.5,6.33364]
[1727021558670,0.03630951,2566.0,2565.5,6.33356]
[1727021559290,0.03630951,2566.0,2565.7,3.89754]
[1727021560087,0.03630951,2566.0,2565.5,10.2313]
[1727021560391,0.03630951,2566.0,2565.5,10.23129]
[1727021560602,0.03630951,2566.0,2565.5,6.32764]
[1727021560890,3.93352951,2566.0,2565.4,3.89802]
[1727021562392,0.03630951,2566.0,2565.5,3.89786]
[1727021562553,3.93352951,2566.0,2565.5,0.779596]
[1727021563587,3.93352951,2566.0,2565.3,3.89808]
[1727021563785,3.89744,2565.8,2565.2,9.5750914]
[1727021563990,2.457,2565.7,2565.2,7.2876914]
[1727021564176,2.4938737,2565.7,2565.2,11.1859214]
[1727021564381,6.3914537,2565.7,2565.2,11.1859214]
[1727021564979,3.89776,2565.6,2565.2,7.2876914]
[1727021565381,0.03687746,2565.5,2565.2,7.2876914]
[1727021565582,0.03687746,2565.5,2565.1,3.89842]
[1727021566495,0.03687746,2565.5,2565.0,3.89861]
[1727021567616,0.03687746,2565.5,2565.0,3.89853]
[1727021568795,0.03687746,2565.5,2565.0,5.207008]
[1727021569009,0.03687746,2565.5,2565.4,3.89802]
[1727021569327,0.0354102,2565.5,2565.4,3.89802]
[1727021569821,6.35413,2566.0,2565.4,3.89802]
[1727021569997,0.0354102,2565.5,2565.4,3.89802]
[1727021570191,2.457,2566.0,2565.6,3.89769]
[1727021570412,2.457,2566.0,2565.5,3.89778]
[1727021570795,2.457,2566.0,2565.6,3.89763]
[1727021571423,2.457,2566.0,2565.5,3.89778]
[1727021571593,6.35419,2566.0,2565.5,3.89778]
[1727021572216,6.35419,2566.0,2565.5,7.79556]
[1727021572427,2.457,2566.0,2565.5,4.7781718]
[1727021572607,2.457,2566.0,2565.7,3.89755]
[1727021575403,3.61761732,2566.5,2565.7,3.89755]
[1727021575404,2.457,2566.3,2565.7,3.89743]
[1727021575946,6.3537,2566.3,2565.7,3.89743]
[1727021576309,6.3537,2566.3,2565.7,6.18483]
[1727021576845,0.03517304,2566.2,2565.7,6.18483]
[1727021577520,0.03517304,2566.2,2565.7,3.89743]
[1727021578204,0.03517304,2566.2,2565.7,7.7949]
[1727021578402,0.03517304,2566.2,2565.7,3.89743]
[1727021579449,0.03517304,2566.2,2565.7,7.79492]
[1727021580350,0.03517304,2566.2,2565.7,3.89743]
[1727021580943,0.03517304,2566.2,2565.7,7.79491]
[1727021581114,0.03517304,2566.2,2565.7,3.89743]
[1727021581558,0.03517304,2566.2,2566.0,3.89699]
[1727021581913,6.38936,2566.5,2566.0,3.89699]
[1727021582115,6.38936,2566.5,2566.0,7.79401]
[1727021582425,6.38936,2566.5,2566.0,3.89699]
[1727021582626,10.28581,2566.5,2566.0,3.89699]
[1727021582842,3.89652,2566.4,2565.9,2.4834]
[1727021583040,3.89669,2566.3,2565.8,3.89727]
[1727021583263,3.89681,2566.2,2565.6,3.89764]
[1727021584260,3.89681,2566.2,2565.7,4.3042562]
[1727021584631,3.89699,2566.1,2565.6,3.89764]
[1727021584965,3.89699,2566.1,2565.6,7.79525]
[1727021584966,2.4929,2566.0,2565.6,7.79525]
[1727021586061,2.4929,2566.0,2565.6,3.89761]
[1727021586263,3.131889,2566.0,2565.5,3.89784]
[1727021586866,2.4929,2566.0,2565.5,3.89784]
[1727021587226,6.3901,2566.0,2565.5,3.89784]
[1727021588667,6.3901,2566.0,2565.4,3.89792]
[1727021588826,7.19747896,2566.0,2565.4,3.89792]
[1727021589659,0.80737896,2565.9,2565.4,3.89792]
[1727021589846,3.89742,2565.8,2565.4,3.89792]
[1727021591037,4.70464896,2565.9,2565.4,3.89792]
[1727021592251,5.9352307,2565.9,2565.4,3.89792]
[1727021592461,3.89893,2564.8,2563.9,3.90021]
[1727021592640,3.89893,2564.8,2563.8,7.2876914]
[1727021592641,6.39183,2564.8,2563.8,3.90031]
[1727021592947,6.39183,2564.8,2563.6,3.90067]
[1727021592948,7.96363681,2564.8,2563.6,3.90067]
[1727021593147,7.96363681,2564.8,2563.2,0.85268753]
[1727021593148,6.6590463,2564.8,2563.2,0.85268753]
[1727021593375,6.6590463,2564.8,2563.4,3.90094]
[1727021593376,7.60600841,2564.1,2563.4,3.90094]
[1727021593671,4.11037788,2564.1,2563.4,3.90094]
[1727021593875,3.70579754,2564.1,2563.4,7.8019]
[1727021594084,3.70579754,2564.1,2563.4,3.90094]
[1727021594252,6.3929,2564.1,2563.2,3.9388115]
[1727021594457,6.3929,2564.1,2563.3,3.9012]
[1727021595538,7.19986748,2564.1,2563.3,3.9012]
[1727021595734,8.4027635,2564.1,2563.3,3.9012]
[1727021596043,3.29986748,2564.1,2563.5,3.90087]
[1727021596247,3.29986748,2564.1,2563.5,2.4834]
[1727021596248,6.3929,2564.1,2563.5,2.4834]
[1727021596441,6.3929,2564.1,2563.2,0.0375115]
[1727021596641,6.3929,2564.1,2563.2,3.9387815]
[1727021597458,6.3929,2564.1,2563.3,3.9012]
[1727021597780,6.3929,2564.1,2563.3,3.90113]
[1727021597981,6.3929,2564.1,2563.5,2.4834]
[1727021599596,6.3929,2564.1,2563.4,11.1886414]
[1727021601488,6.3929,2564.1,2563.5,3.90088]
[1727021602503,2.4929,2564.1,2563.6,3.90073]
[1727021603201,6.3929,2564.1,2563.4,11.1886414]
[1727021603383,6.3929,2564.1,2563.5,3.90085]
[1727021604396,6.3929,2564.1,2563.2,0.0375115]
[1727021604397,2.287,2563.3,2563.2,0.0375115]
[1727021604599,6.18822,2563.3,2563.2,0.0375115]
[1727021604762,2.287,2563.6,2563.2,0.0375115]
[1727021605097,6.18779,2563.6,2563.2,0.0375115]
[1727021605395,2.287,2563.6,2563.2,0.0375115]
[1727021605855,3.90068,2563.7,2563.2,0.0375115]
[1727021606400,3.90081,2563.6,2563.2,0.0375115]
[1727021606963,5.27124873,2563.7,2563.2,0.0375115]
[1727021608106,9.17197873,2563.7,2563.2,0.0375115]
[1727021608399,5.27124873,2563.7,2563.2,0.0375115]
[1727021608763,9.17195873,2563.7,2563.2,0.0375115]
[1727021608965,0.91719587,2563.6,2563.2,0.0375115]
[1727021609157,5.27124873,2563.7,2563.2,0.0375115]
[1727021609362,6.18739,2563.9,2563.2,0.0375115]
[1727021610106,3.90059,2563.8,2563.2,0.0375115]
[1727021610418,6.18739,2563.9,2563.3,3.90113]
[1727021611661,3.90016,2564.0,2563.3,3.90111]
[1727021611905,3.90016,2564.0,2563.5,3.90089]
[1727021612070,1.39002773,2564.0,2563.2,0.0375115]
[1727021612275,3.90024,2564.0,2563.4,3.90106]
[1727021612479,3.90033,2563.9,2563.4,3.90105]
[1727021613563,3.90033,2563.9,2563.3,3.90108]
[1727021613766,3.90033,2563.9,2563.2,0.0375115]
[1727021613767,3.90063,2563.7,2563.2,3.9388315]
[1727021613997,3.90116,2563.4,2563.2,0.0375115]
[1727021614176,3.90122,2563.3,2563.2,0.0375115]
[1727021615304,7.80223,2563.4,2563.2,0.0375115]
[1727021615609,3.90108,2563.4,2563.2,0.0375115]
[1727021615969,3.90122,2563.3,2563.2,0.0375115]
[1727021616175,4.68145,2563.3,2563.2,0.0375115]
[1727021617314,3.90108,2563.4,2563.2,0.0375115]
[1727021617923,7.80222,2563.4,2563.2,0.0375115]
[1727021618354,3.90108,2563.4,2563.2,0.0375115]
[1727021620640,3.90092,2563.5,2563.2,0.0375115]
[1727021621328,3.90108,2563.4,2563.2,0.0375115]
[1727021621538,4.929514,2563.4,2563.2,0.0375115]
[1727021621716,6.25562,2563.3,2563.2,0.0375115]
[1727021621918,2.3544,2563.3,2563.2,0.0375115]
[1727021622221,3.90108,2563.4,2563.2,0.0375115]
[1727021622423,6.25534,2563.5,2563.2,0.0375115]
[1727021624135,3.90111,2563.4,2563.2,0.0375115]
[1727021624324,1.015645,2563.3,2563.2,0.0375115]
[1727021625066,2.3544,2563.5,2563.2,0.0375115]
[1727021625642,3.90078,2563.6,2563.2,0.0375115]
[1727021627248,7.80164,2563.6,2563.2,0.0375115]
[1727021627960,3.90078,2563.6,2563.2,0.0375115]
[1727021628166,7.80166,2563.6,2563.2,0.0375115]
[1727021628371,4.79528177,2563.5,2563.2,0.0375115]
[1727021628873,4.79528177,2563.5,2563.2,3.9388615]
[1727021628874,0.89435177,2563.5,2563.2,3.9388615]
[1727021629024,1.14185773,2563.7,2563.2,3.9388615]
[1727021629223,5.04254773,2563.7,2563.2,3.9388615]
[1727021630229,5.04254773,2563.7,2563.2,3.9387915]
[1727021630424,1.14185773,2563.7,2563.2,3.9387915]
[1727021630730,5.04247773,2563.7,2563.2,3.9387915]
[1727021630961,0.73968777,2563.6,2563.2,7.8400715]
[1727021631262,9.87209732,2564.1,2563.4,3.90098]
[1727021631448,9.87209732,2564.1,2563.3,2.3049]
[1727021631449,3.90031,2563.9,2563.3,6.2061]
[1727021631654,0.390031,2563.8,2563.3,6.2061]
[1727021632267,0.390031,2563.8,2563.4,3.90106]
[1727021632467,0.390031,2563.8,2563.4,3.90098]
[1727021633030,0.390031,2563.8,2563.4,3.90097]
[1727021633342,0.390031,2563.8,2563.4,7.80196]
[1727021633549,3.90019,2564.0,2563.5,3.90084]
[1727021634079,3.90019,2564.0,2563.4,7.80195]
[1727021634383,3.90019,2564.0,2563.4,3.90097]
[1727021634545,3.90019,2564.0,2563.4,7.80196]
[1727021634933,3.90019,2564.0,2563.4,3.90097]
[1727021635161,5.27741973,2564.0,2563.5,3.90091]